[Event "*** Titled Tuesday 3|2 Blitz"]
[Site "Chess.com"]
[Date "2016.01.05"]
[Round "3"]
[White "BahadirOzen"]
[Black "jk13"]
[Result "1-0"]
[WhiteElo "2472"]
[BlackElo "2251"]
[TimeControl "180+2"]
[EndTime "11:31:03 PST"]
[Termination "BahadirOzen won by resignation"]

1. d4 {[%clk 0:03:01.9]} 1... e6 {[%clk 0:02:58.8]} 2. Nf3 {[%clk 0:03:02]} 2...
Nf6 {[%clk 0:03:00.1]} 3. c3 {[%clk 0:03:00.4]} 3... d5 {[%clk 0:03:00.9]} 4.
Bf4 {[%clk 0:03:00.8]} 4... c5 {[%clk 0:03:00.7]} 5. e3 {[%clk 0:02:54.8]} 5...
Nc6 {[%clk 0:03:02.2]} 6. Nbd2 {[%clk 0:02:55.1]} 6... Be7 {[%clk 0:03:01.3]} 7.
Bd3 {[%clk 0:02:49.6]} 7... O-O {[%clk 0:03:03.2]} 8. h3 {[%clk 0:02:50]} 8...
b6 {[%clk 0:03:04.4]} 9. O-O {[%clk 0:02:50.1]} 9... Bb7 {[%clk 0:03:05.9]} 10.
a4 {[%clk 0:02:47.8]} 10... Bd6 {[%clk 0:03:01.8]} 11. Bxd6 {[%clk 0:02:32.6]}
11... Qxd6 {[%clk 0:03:03.7]} 12. Bb5 {[%clk 0:02:32.3]} 12... Nd7 {[%clk
0:02:56.8]} 13. e4 {[%clk 0:02:24.3]} 13... cxd4 {[%clk 0:02:56.5]} 14. cxd4
{[%clk 0:02:24.3]} 14... dxe4 {[%clk 0:02:53.5]} 15. Nxe4 {[%clk 0:02:25]} 15...
Qe7 {[%clk 0:02:46.5]} 16. Re1 {[%clk 0:02:15.1]} 16... Nf6 {[%clk 0:02:41.7]}
17. Nxf6+ {[%clk 0:01:40.9]} 17... Qxf6 {[%clk 0:02:43.6]} 18. d5 {[%clk
0:01:42.8]} 18... exd5 {[%clk 0:02:26]} 19. Qxd5 {[%clk 0:01:44.7]} 19... Na5
{[%clk 0:02:26.9]} 20. Qe5 {[%clk 0:01:43.7]} 20... Qg6 {[%clk 0:02:20.9]} 21.
Re3 {[%clk 0:01:24.2]} 21... Nc6 {[%clk 0:02:04.8]} 22. Qc7 {[%clk 0:01:12.9]}
22... Rab8 {[%clk 0:02:01.6]} 23. Rae1 {[%clk 0:01:09.3]} 23... Nd4 {[%clk
0:01:40.6]} 24. Qxb8 {[%clk 0:00:54.9]} 24... Nxf3+ {[%clk 0:01:41]} 25. Kh1
{[%clk 0:00:55.9]} 25... Nxe1 {[%clk 0:01:41.6]} 26. Qxf8+ {[%clk 0:00:56.5]}
1-0

[Event "*** Titled Tuesday 3|2 Blitz"]
[Site "Chess.com"]
[Date "2016.01.05"]
[Round "3"]
[White "Cats4Sale"]
[Black "Quiet_Desperation"]
[Result "1-0"]
[WhiteElo "2226"]
[BlackElo "2120"]
[TimeControl "180+2"]
[EndTime "11:31:24 PST"]
[Termination "Cats4Sale won by resignation"]

1. e4 {[%clk 0:03:01.9]} 1... e6 {[%clk 0:03:00]} 2. d4 {[%clk 0:03:00.8]} 2...
d5 {[%clk 0:03:01.1]} 3. Nd2 {[%clk 0:03:01.9]} 3... Nf6 {[%clk 0:03:01.7]} 4.
e5 {[%clk 0:03:03.2]} 4... Nfd7 {[%clk 0:03:03]} 5. c3 {[%clk 0:03:03.5]} 5...
c5 {[%clk 0:03:04.2]} 6. Bd3 {[%clk 0:03:04.8]} 6... Nc6 {[%clk 0:03:05.4]} 7.
Ne2 {[%clk 0:03:06.1]} 7... cxd4 {[%clk 0:03:05.7]} 8. cxd4 {[%clk 0:03:07.4]}
8... f6 {[%clk 0:03:07.2]} 9. exf6 {[%clk 0:03:08.7]} 9... Nxf6 {[%clk
0:03:08.8]} 10. Nf3 {[%clk 0:03:10.3]} 10... Bd6 {[%clk 0:03:10.2]} 11. O-O
{[%clk 0:03:11.7]} 11... Qc7 {[%clk 0:03:11.9]} 12. Bg5 {[%clk 0:03:12.6]} 12...
O-O {[%clk 0:03:12.4]} 13. Bh4 {[%clk 0:03:14]} 13... Nh5 {[%clk 0:03:12.3]} 14.
Bg3 {[%clk 0:03:15.3]} 14... Nxg3 {[%clk 0:03:10.3]} 15. hxg3 {[%clk 0:03:16.6]}
15... Qf7 {[%clk 0:03:06.1]} 16. Bxh7+ {[%clk 0:03:11.3]} 16... Kh8 {[%clk
0:03:05.6]} 17. Bc2 {[%clk 0:02:59.6]} 17... Qh5 {[%clk 0:03:06.1]} 18. Nh4
{[%clk 0:02:54.6]} 18... Ne7 {[%clk 0:03:01.8]} 19. Nf4 {[%clk 0:02:49.3]} 19...
Qh6 {[%clk 0:02:54.1]} 20. Nfg6+ {[%clk 0:02:44.4]} 20... Nxg6 {[%clk
0:02:55.3]} 21. Nxg6+ {[%clk 0:02:45.3]} 21... Kg8 {[%clk 0:02:56.9]} 22. Nxf8
{[%clk 0:02:40.9]} 22... Bxf8 {[%clk 0:02:57.6]} 23. Qc1 {[%clk 0:02:32]} 23...
Qh5 {[%clk 0:02:52.7]} 24. Qf4 {[%clk 0:02:08.5]} 24... Be7 {[%clk 0:02:49.4]}
25. Qf3 {[%clk 0:01:37]} 25... Qh6 {[%clk 0:02:49.3]} 26. Qe3 {[%clk 0:01:35.2]}
26... Bg5 {[%clk 0:02:47.7]} 27. f4 {[%clk 0:01:26.7]} 27... Bf6 {[%clk
0:02:48.7]} 28. Kf2 {[%clk 0:01:26.1]} 28... g5 {[%clk 0:02:39.4]} 29. Rh1
{[%clk 0:01:23.9]} 29... gxf4 {[%clk 0:02:34.9]} 30. gxf4 {[%clk 0:01:18.1]}
30... Qg7 {[%clk 0:02:26.3]} 31. Rad1 {[%clk 0:01:08.2]} 31... Bd7 {[%clk
0:02:24.1]} 32. Rh7 {[%clk 0:01:06.8]} 32... Qg4 {[%clk 0:02:25.2]} 33. Rxd7
{[%clk 0:00:48.9]} 33... Rf8 {[%clk 0:02:25.6]} 34. Rh1 {[%clk 0:00:40.5]} 34...
Bh4+ {[%clk 0:02:09.6]} 35. Rxh4 {[%clk 0:00:38.1]} 35... Qxh4+ {[%clk
0:02:08.5]} 36. Qg3+ {[%clk 0:00:38.8]} 1-0

[Event "*** Titled Tuesday 3|2 Blitz"]
[Site "Chess.com"]
[Date "2016.01.05"]
[Round "3"]
[White "chessdude"]
[Black "jbj"]
[Result "1-0"]
[WhiteElo "2314"]
[BlackElo "2283"]
[TimeControl "180+2"]
[EndTime "11:31:41 PST"]
[Termination "chessdude won by resignation"]

1. e4 {[%clk 0:02:58.7]} 1... d6 {[%clk 0:03:00.8]} 2. d4 {[%clk 0:02:59.1]}
2... Nf6 {[%clk 0:03:02.1]} 3. Nc3 {[%clk 0:03:00.3]} 3... e5 {[%clk 0:03:03.3]}
4. Nf3 {[%clk 0:03:01.4]} 4... Nbd7 {[%clk 0:03:04.6]} 5. Bc4 {[%clk 0:03:02.5]}
5... Be7 {[%clk 0:03:06]} 6. O-O {[%clk 0:03:03.7]} 6... O-O {[%clk 0:03:07.1]}
7. a4 {[%clk 0:03:04.9]} 7... a6 {[%clk 0:03:07.5]} 8. Re1 {[%clk 0:03:03.2]}
8... b6 {[%clk 0:03:08.2]} 9. h3 {[%clk 0:03:01.1]} 9... Bb7 {[%clk 0:03:09.4]}
10. d5 {[%clk 0:03:00]} 10... c6 {[%clk 0:03:07.5]} 11. dxc6 {[%clk 0:02:59.2]}
11... Bxc6 {[%clk 0:03:09.4]} 12. Qe2 {[%clk 0:02:54.9]} 12... Nc5 {[%clk
0:03:09.6]} 13. Nd2 {[%clk 0:02:47.6]} 13... Ne6 {[%clk 0:03:05.4]} 14. Nf3
{[%clk 0:02:45.3]} 14... Nc5 {[%clk 0:02:51]} 15. Nd2 {[%clk 0:02:42.4]} 15...
Nxa4 {[%clk 0:02:37.7]} 16. Nxa4 {[%clk 0:02:38.3]} 16... b5 {[%clk 0:02:38.9]}
17. Nc3 {[%clk 0:02:32.8]} 17... bxc4 {[%clk 0:02:39.8]} 18. Nxc4 {[%clk
0:02:34.4]} 18... Qc7 {[%clk 0:02:35]} 19. Qd3 {[%clk 0:02:26.7]} 19... Nxe4
{[%clk 0:02:15.5]} 20. Rxe4 {[%clk 0:02:24.5]} 20... Bxe4 {[%clk 0:02:11.6]} 21.
Qxe4 {[%clk 0:02:24.6]} 21... Rfe8 {[%clk 0:01:38.6]} 22. Nd5 {[%clk 0:02:23.1]}
22... Qb8 {[%clk 0:01:37.1]} 23. b3 {[%clk 0:02:21.2]} 23... Bf8 {[%clk
0:01:35.1]} 24. Bg5 {[%clk 0:02:18.3]} 24... Re6 {[%clk 0:01:30.7]} 25. h4
{[%clk 0:02:15.1]} 25... h6 {[%clk 0:01:30.2]} 26. Be3 {[%clk 0:02:10.5]} 26...
Qd8 {[%clk 0:00:50.8]} 27. Nc7 {[%clk 0:01:57.3]} 27... Rc8 {[%clk 0:00:45.4]}
28. Nxe6 {[%clk 0:01:57.3]} 28... fxe6 {[%clk 0:00:47.3]} 29. Qg6 {[%clk
0:01:47.8]} 29... Qxh4 {[%clk 0:00:26.5]} 30. Qxe6+ {[%clk 0:01:47]} 30... Kh7
{[%clk 0:00:27.8]} 31. Qxc8 {[%clk 0:01:45.4]} 1-0

[Event "*** Titled Tuesday 3|2 Blitz"]
[Site "Chess.com"]
[Date "2016.01.05"]
[Round "3"]
[White "Moltini"]
[Black "Maitreia"]
[Result "0-1"]
[WhiteElo "2177"]
[BlackElo "2466"]
[TimeControl "180+2"]
[EndTime "11:32:08 PST"]
[Termination "Maitreia won by resignation"]

1. d4 {[%clk 0:03:01.9]} 1... Nf6 {[%clk 0:03:00.4]} 2. c4 {[%clk 0:03:02.1]}
2... e5 {[%clk 0:03:01.7]} 3. dxe5 {[%clk 0:03:02.7]} 3... Ng4 {[%clk
0:03:02.4]} 4. Bf4 {[%clk 0:03:03.6]} 4... Bb4+ {[%clk 0:03:03]} 5. Nd2 {[%clk
0:03:04.6]} 5... Nc6 {[%clk 0:03:03.3]} 6. Nf3 {[%clk 0:03:05.9]} 6... Qe7
{[%clk 0:03:04.2]} 7. e3 {[%clk 0:03:06.6]} 7... Ngxe5 {[%clk 0:03:05.2]} 8.
Nxe5 {[%clk 0:03:07.9]} 8... Nxe5 {[%clk 0:03:07.1]} 9. Be2 {[%clk 0:03:09.4]}
9... O-O {[%clk 0:03:07.6]} 10. O-O {[%clk 0:03:10.3]} 10... Bxd2 {[%clk
0:03:08.8]} 11. Qxd2 {[%clk 0:03:11.8]} 11... d6 {[%clk 0:03:10.7]} 12. Rac1
{[%clk 0:03:11.1]} 12... b6 {[%clk 0:03:11.7]} 13. Bg3 {[%clk 0:03:11.6]} 13...
Bb7 {[%clk 0:03:11.2]} 14. b4 {[%clk 0:03:12.8]} 14... a5 {[%clk 0:03:10]} 15.
a3 {[%clk 0:03:13.5]} 15... axb4 {[%clk 0:03:11]} 16. axb4 {[%clk 0:03:14.8]}
16... f6 {[%clk 0:02:58.8]} 17. Qc3 {[%clk 0:03:10.3]} 17... Ra2 {[%clk
0:02:51.2]} 18. Bd1 {[%clk 0:03:11.2]} 18... c5 {[%clk 0:02:39.6]} 19. Bb3
{[%clk 0:03:07.9]} 19... Ra3 {[%clk 0:02:37.8]} 20. Ra1 {[%clk 0:03:07.3]} 20...
Rfa8 {[%clk 0:02:30.4]} 21. Rxa3 {[%clk 0:03:04.7]} 21... Rxa3 {[%clk
0:02:32.3]} 22. bxc5 {[%clk 0:03:04.9]} 22... bxc5 {[%clk 0:02:27.4]} 23. Ra1
{[%clk 0:03:05.5]} 23... Rxa1+ {[%clk 0:02:19.3]} 24. Qxa1 {[%clk 0:03:06.5]}
24... Be4 {[%clk 0:02:14.8]} 25. Qa6 {[%clk 0:03:03.6]} 25... Kf7 {[%clk
0:01:50.5]} 26. h3 {[%clk 0:02:59.9]} 26... Qb7 {[%clk 0:01:49.1]} 27. Qxb7+
{[%clk 0:02:45.4]} 27... Bxb7 {[%clk 0:01:51]} 28. Bxe5 {[%clk 0:02:46.4]} 28...
fxe5 {[%clk 0:01:32.6]} 29. f3 {[%clk 0:02:47.1]} 29... e4 {[%clk 0:01:21.9]}
30. Kf2 {[%clk 0:02:40.1]} 30... Ke6 {[%clk 0:01:19.6]} 31. Bc2 {[%clk 0:02:38]}
31... d5 {[%clk 0:01:03.5]} 32. cxd5+ {[%clk 0:02:38.2]} 32... Bxd5 {[%clk
0:01:05.4]} 33. fxe4 {[%clk 0:02:32.9]} 33... Bc6 {[%clk 0:01:00.8]} 34. Kf3
{[%clk 0:02:25.7]} 34... Ke5 {[%clk 0:01:01.9]} 35. g3 {[%clk 0:02:26.3]} 35...
c4 {[%clk 0:00:57.2]} 36. h4 {[%clk 0:02:26.1]} 36... c3 {[%clk 0:00:54.7]} 37.
g4 {[%clk 0:02:25.1]} 37... h6 {[%clk 0:00:54.1]} 38. g5 {[%clk 0:02:24.9]}
38... hxg5 {[%clk 0:00:51.8]} 39. hxg5 {[%clk 0:02:25.6]} 39... Bb5 {[%clk
0:00:50.7]} 40. Kg4 {[%clk 0:02:23.9]} 40... Be2+ {[%clk 0:00:48.8]} 41. Kg3
{[%clk 0:02:23.1]} 41... Bh5 {[%clk 0:00:40.1]} 42. Kh4 {[%clk 0:02:18.5]} 42...
Bg6 {[%clk 0:00:39.9]} 43. Kg3 {[%clk 0:02:14.2]} 43... Bxe4 {[%clk 0:00:40.9]}
44. Bd1 {[%clk 0:02:15.1]} 44... c2 {[%clk 0:00:41.9]} 45. Bxc2 {[%clk
0:02:16.2]} 45... Bxc2 {[%clk 0:00:43.8]} 46. Kg4 {[%clk 0:02:16.8]} 46... Bg6
{[%clk 0:00:44.3]} 47. Kf3 {[%clk 0:02:17.7]} 47... Kf5 {[%clk 0:00:45.3]} 0-1

[Event "*** Titled Tuesday 3|2 Blitz"]
[Site "Chess.com"]
[Date "2016.01.05"]
[Round "3"]
[White "volodja49"]
[Black "DeviatkinAndrey"]
[Result "0-1"]
[WhiteElo "2287"]
[BlackElo "2509"]
[TimeControl "180+2"]
[EndTime "11:32:13 PST"]
[Termination "DeviatkinAndrey won by resignation"]

1. d4 {[%clk 0:03:01.9]} 1... d5 {[%clk 0:03:00.3]} 2. c4 {[%clk 0:03:03.2]}
2... c6 {[%clk 0:03:01.5]} 3. Nc3 {[%clk 0:03:04.2]} 3... Nf6 {[%clk 0:03:01.5]}
4. e3 {[%clk 0:03:05.8]} 4... g6 {[%clk 0:02:58.1]} 5. Nf3 {[%clk 0:03:05.7]}
5... Bg7 {[%clk 0:02:59.1]} 6. h3 {[%clk 0:03:07]} 6... O-O {[%clk 0:03:00.3]}
7. Bd3 {[%clk 0:03:08.1]} 7... c5 {[%clk 0:02:58.6]} 8. O-O {[%clk 0:03:07.6]}
8... Nc6 {[%clk 0:02:54.6]} 9. cxd5 {[%clk 0:03:03.7]} 9... Nxd5 {[%clk
0:02:53.5]} 10. Nxd5 {[%clk 0:03:05]} 10... Qxd5 {[%clk 0:02:53.7]} 11. e4
{[%clk 0:03:06.9]} 11... Qd6 {[%clk 0:02:51.3]} 12. d5 {[%clk 0:03:06]} 12...
Nd4 {[%clk 0:02:51.6]} 13. Nxd4 {[%clk 0:03:05]} 13... Bxd4 {[%clk 0:02:47.1]}
14. Bh6 {[%clk 0:02:49.8]} 14... Rd8 {[%clk 0:02:30.5]} 15. Qd2 {[%clk
0:02:49.6]} 15... e6 {[%clk 0:02:22.6]} 16. Bg5 {[%clk 0:02:24.4]} 16... Re8
{[%clk 0:02:19.8]} 17. Bf4 {[%clk 0:02:23.6]} 17... Be5 {[%clk 0:02:00.8]} 18.
Bxe5 {[%clk 0:02:09.4]} 18... Qxe5 {[%clk 0:02:01.4]} 19. Rac1 {[%clk
0:01:48.6]} 19... b6 {[%clk 0:01:53]} 20. Qc3 {[%clk 0:01:47.2]} 20... exd5
{[%clk 0:01:37.3]} 21. Qxe5 {[%clk 0:01:31.6]} 21... Rxe5 {[%clk 0:01:36.4]} 22.
f4 {[%clk 0:01:29]} 22... Re7 {[%clk 0:01:31.8]} 23. exd5 {[%clk 0:01:29.4]}
23... Bb7 {[%clk 0:01:31.9]} 24. Bc4 {[%clk 0:01:22.5]} 24... Rd8 {[%clk
0:01:32.3]} 25. Rfe1 {[%clk 0:00:36]} 25... Kf8 {[%clk 0:01:25.6]} 26. Rxe7
{[%clk 0:00:28.4]} 26... Kxe7 {[%clk 0:01:26.1]} 27. Rd1 {[%clk 0:00:30.3]}
27... Kd6 {[%clk 0:01:19.9]} 28. Kf2 {[%clk 0:00:29.8]} 28... Re8 {[%clk
0:01:16.9]} 29. Re1 {[%clk 0:00:23.8]} 29... Rxe1 {[%clk 0:01:16.2]} 30. Kxe1
{[%clk 0:00:25.7]} 30... Bxd5 {[%clk 0:01:17.5]} 0-1

[Event "*** Titled Tuesday 3|2 Blitz"]
[Site "Chess.com"]
[Date "2016.01.05"]
[Round "3"]
[White "Frolyanov_D"]
[Black "kikydu96"]
[Result "1-0"]
[WhiteElo "2470"]
[BlackElo "2238"]
[TimeControl "180+2"]
[EndTime "11:32:17 PST"]
[Termination "Frolyanov_D won on time"]

1. e4 {[%clk 0:03:01.9]} 1... e5 {[%clk 0:02:37.8]} 2. Nf3 {[%clk 0:03:02]} 2...
Nc6 {[%clk 0:02:37.5]} 3. Bb5 {[%clk 0:03:02]} 3... a6 {[%clk 0:02:38.2]} 4. Ba4
{[%clk 0:03:02.4]} 4... Nf6 {[%clk 0:02:39.2]} 5. O-O {[%clk 0:03:03.2]} 5...
Be7 {[%clk 0:02:40.2]} 6. Bxc6 {[%clk 0:03:04.8]} 6... dxc6 {[%clk 0:02:36.7]}
7. d3 {[%clk 0:03:06.3]} 7... Nd7 {[%clk 0:02:33.8]} 8. Nbd2 {[%clk 0:03:07.6]}
8... f6 {[%clk 0:02:33.5]} 9. Nh4 {[%clk 0:03:06.7]} 9... Nc5 {[%clk 0:02:33.6]}
10. Qh5+ {[%clk 0:03:05.5]} 10... Kd7 {[%clk 0:02:15]} 11. Nc4 {[%clk
0:02:58.9]} 11... Qe8 {[%clk 0:02:03.8]} 12. Qg4+ {[%clk 0:02:58.5]} 12... Kd8
{[%clk 0:02:02.7]} 13. Qxg7 {[%clk 0:02:41.6]} 13... Rg8 {[%clk 0:01:34.8]} 14.
Qh6 {[%clk 0:02:40.1]} 14... Be6 {[%clk 0:01:35.3]} 15. Be3 {[%clk 0:02:25.2]}
15... Bxc4 {[%clk 0:01:24.7]} 16. Bxc5 {[%clk 0:02:18.7]} 16... Be6 {[%clk
0:01:08.9]} 17. Bxe7+ {[%clk 0:02:13.5]} 17... Qxe7 {[%clk 0:01:10.5]} 18. Nf5
{[%clk 0:02:11.8]} 18... Bxf5 {[%clk 0:01:10.8]} 19. exf5 {[%clk 0:02:13.3]}
19... Rg5 {[%clk 0:01:11.2]} 20. Qh3 {[%clk 0:02:03.2]} 20... Qd7 {[%clk
0:01:12.1]} 21. f4 {[%clk 0:02:00.9]} 21... Qd4+ {[%clk 0:01:08.8]} 22. Kh1
{[%clk 0:02:01]} 22... exf4 {[%clk 0:01:08]} 23. Rae1 {[%clk 0:01:51.6]} 23...
h5 {[%clk 0:00:54.7]} 24. Re4 {[%clk 0:01:44.7]} 24... Qxb2 {[%clk 0:00:54]} 25.
Rfe1 {[%clk 0:01:44.3]} 25... Rc8 {[%clk 0:00:13]} 26. Qf3 {[%clk 0:01:39.2]}
26... Qxc2 {[%clk 0:00:05.9]} 27. R4e2 {[%clk 0:01:32.7]} 27... Qc5 {[%clk
0:00:05.6]} 28. Qxf4 {[%clk 0:01:30.3]} 1-0

[Event "*** Titled Tuesday 3|2 Blitz"]
[Site "Chess.com"]
[Date "2016.01.05"]
[Round "3"]
[White "chorejason"]
[Black "AnimationDomination"]
[Result "1-0"]
[WhiteElo "1885"]
[BlackElo "1719"]
[TimeControl "180+2"]
[EndTime "11:32:46 PST"]
[Termination "chorejason won by resignation"]

1. e4 {[%clk 0:03:01.9]} 1... c5 {[%clk 0:02:59.2]} 2. Nf3 {[%clk 0:03:02.7]}
2... d6 {[%clk 0:03:00]} 3. d4 {[%clk 0:03:04.1]} 3... cxd4 {[%clk 0:03:01.9]}
4. Nxd4 {[%clk 0:03:05.6]} 4... Nf6 {[%clk 0:03:03.8]} 5. Nc3 {[%clk 0:03:07.1]}
5... a6 {[%clk 0:03:04.9]} 6. Bc4 {[%clk 0:03:06.9]} 6... e5 {[%clk 0:03:03.2]}
7. Nb3 {[%clk 0:03:02.7]} 7... Qc7 {[%clk 0:02:48.6]} 8. Qe2 {[%clk 0:02:59.1]}
8... Nc6 {[%clk 0:02:43]} 9. Bg5 {[%clk 0:02:58.7]} 9... Be7 {[%clk 0:02:29.9]}
10. Bxf6 {[%clk 0:02:56.5]} 10... Bxf6 {[%clk 0:02:25.3]} 11. Nd5 {[%clk
0:02:57.8]} 11... Qd8 {[%clk 0:02:16.4]} 12. O-O-O {[%clk 0:02:33.1]} 12... b5
{[%clk 0:02:01.5]} 13. Bd3 {[%clk 0:02:03.3]} 13... Be6 {[%clk 0:01:58.1]} 14.
f4 {[%clk 0:01:58.6]} 14... Bxd5 {[%clk 0:01:47.8]} 15. exd5 {[%clk 0:01:54.3]}
15... Nb4 {[%clk 0:01:47.1]} 16. Bxb5+ {[%clk 0:01:53.1]} 16... Kf8 {[%clk
0:01:41.6]} 17. Bc6 {[%clk 0:01:36.4]} 17... Nxc6 {[%clk 0:01:01]} 18. dxc6
{[%clk 0:01:36.6]} 18... exf4 {[%clk 0:00:59.4]} 19. Rd5 {[%clk 0:00:57.9]}
19... Be5 {[%clk 0:00:45.4]} 20. Rhd1 {[%clk 0:00:58.2]} 20... Qc7 {[%clk
0:00:39.9]} 21. Na5 {[%clk 0:00:56.9]} 21... Rb8 {[%clk 0:00:22.3]} 22. c3
{[%clk 0:00:57.1]} 22... Rb6 {[%clk 0:00:21.2]} 23. Qc4 {[%clk 0:00:57.1]} 23...
g6 {[%clk 0:00:19.7]} 24. Rxe5 {[%clk 0:00:57.7]} 24... dxe5 {[%clk 0:00:19.1]}
25. Rd7 {[%clk 0:00:58.5]} 25... Qxd7 {[%clk 0:00:13.6]} 26. cxd7 {[%clk
0:00:58.5]} 26... Kg7 {[%clk 0:00:15.2]} 27. Qc7 {[%clk 0:00:45.8]} 27... Rbb8
{[%clk 0:00:15.8]} 28. Nc6 {[%clk 0:00:47.1]} 1-0

[Event "*** Titled Tuesday 3|2 Blitz"]
[Site "Chess.com"]
[Date "2016.01.05"]
[Round "3"]
[White "Er_is_geen_hoop_meer"]
[Black "THORK"]
[Result "1-0"]
[WhiteElo "2309"]
[BlackElo "2155"]
[TimeControl "180+2"]
[EndTime "11:32:51 PST"]
[Termination "Er_is_geen_hoop_meer won by resignation"]

1. b3 {[%clk 0:02:51.6]} 1... Nf6 {[%clk 0:02:58.7]} 2. Bb2 {[%clk 0:02:53.5]}
2... e6 {[%clk 0:02:59.5]} 3. g3 {[%clk 0:02:53.4]} 3... d5 {[%clk 0:03:00.4]}
4. Bg2 {[%clk 0:02:54.4]} 4... c6 {[%clk 0:02:54.6]} 5. d3 {[%clk 0:02:55]} 5...
a5 {[%clk 0:02:55]} 6. Nd2 {[%clk 0:02:56.9]} 6... a4 {[%clk 0:02:56]} 7. e3
{[%clk 0:02:55.4]} 7... a3 {[%clk 0:02:55.3]} 8. Bc3 {[%clk 0:02:55.6]} 8... b5
{[%clk 0:02:56.3]} 9. Ne2 {[%clk 0:02:47.5]} 9... b4 {[%clk 0:02:57]} 10. Bd4
{[%clk 0:02:48]} 10... c5 {[%clk 0:02:57.6]} 11. Bxf6 {[%clk 0:02:48.3]} 11...
gxf6 {[%clk 0:02:56.6]} 12. e4 {[%clk 0:02:47.7]} 12... d4 {[%clk 0:02:50]} 13.
e5 {[%clk 0:02:45.6]} 13... Ra7 {[%clk 0:02:49.7]} 14. exf6 {[%clk 0:02:46]}
14... Qxf6 {[%clk 0:02:49.9]} 15. O-O {[%clk 0:02:46]} 15... h5 {[%clk
0:02:48.1]} 16. h4 {[%clk 0:02:45.7]} 16... Bb7 {[%clk 0:02:44.9]} 17. Nf4
{[%clk 0:02:42.4]} 17... Bxg2 {[%clk 0:02:43.3]} 18. Nxg2 {[%clk 0:02:44.3]}
18... Nd7 {[%clk 0:02:40.9]} 19. Re1 {[%clk 0:02:43.7]} 19... Bh6 {[%clk
0:02:37.3]} 20. Ne4 {[%clk 0:02:35]} 20... Qg6 {[%clk 0:02:38.2]} 21. Qf3 {[%clk
0:02:32.1]} 21... Ke7 {[%clk 0:02:35.5]} 22. Nf4 {[%clk 0:02:31.3]} 22... Bxf4
{[%clk 0:02:35.9]} 23. Qxf4 {[%clk 0:02:33.2]} 23... e5 {[%clk 0:02:19.9]} 24.
Nxc5 {[%clk 0:02:32.8]} 24... f6 {[%clk 0:01:57.5]} 25. Qxd4 {[%clk 0:02:20.7]}
25... Rc7 {[%clk 0:01:51.3]} 26. Nxd7 {[%clk 0:02:18.4]} 26... Rxd7 {[%clk
0:01:52.3]} 27. Qxb4+ {[%clk 0:02:19.1]} 27... Kf7 {[%clk 0:01:53.8]} 28. Qxa3
{[%clk 0:02:19.7]} 28... Rhd8 {[%clk 0:01:53.6]} 29. Qa4 {[%clk 0:02:20.4]}
29... Kg7 {[%clk 0:01:54.4]} 30. Qe4 {[%clk 0:02:21]} 30... Qh6 {[%clk
0:01:53.7]} 31. Qf5 {[%clk 0:02:19.3]} 31... Rd4 {[%clk 0:01:51]} 32. a4 {[%clk
0:02:16.5]} 32... Qd2 {[%clk 0:01:49.8]} 33. Qxh5 {[%clk 0:02:15.8]} 33... Qxc2
{[%clk 0:01:50.3]} 34. a5 {[%clk 0:02:16.4]} 34... Qxd3 {[%clk 0:01:50.1]} 35.
a6 {[%clk 0:02:16]} 35... Qxb3 {[%clk 0:01:48.4]} 36. a7 {[%clk 0:02:16.9]}
36... Ra8 {[%clk 0:01:48.9]} 37. Rxe5 {[%clk 0:02:17.8]} 37... Qf7 {[%clk
0:01:41.9]} 38. Qxf7+ {[%clk 0:02:15.5]} 38... Kxf7 {[%clk 0:01:43.2]} 39. Rb5
{[%clk 0:02:17.4]} 39... Rd7 {[%clk 0:01:43.5]} 40. Rba5 {[%clk 0:02:11.5]}
40... Rb7 {[%clk 0:01:44.1]} 41. Kg2 {[%clk 0:02:05.5]} 41... Kg6 {[%clk
0:01:45.3]} 42. Kh3 {[%clk 0:02:05.6]} 42... Kf7 {[%clk 0:01:46.4]} 43. f4
{[%clk 0:02:05.8]} 43... Kg6 {[%clk 0:01:46.5]} 44. h5+ {[%clk 0:02:06.7]} 44...
Kf7 {[%clk 0:01:44.9]} 45. g4 {[%clk 0:02:07.5]} 45... Kg7 {[%clk 0:01:45.7]}
46. Kh4 {[%clk 0:02:08.1]} 46... Rb4 {[%clk 0:01:44.2]} 47. R1a4 {[%clk
0:02:08.6]} 47... Rb7 {[%clk 0:01:41.8]} 48. g5 {[%clk 0:02:09.3]} 48... fxg5+
{[%clk 0:01:41]} 49. fxg5 {[%clk 0:02:11.2]} 49... Rc7 {[%clk 0:01:40.5]} 50.
Ra6 {[%clk 0:02:07.7]} 50... Kh7 {[%clk 0:01:39]} 51. h6 {[%clk 0:02:06.9]}
51... Rb7 {[%clk 0:01:32]} 52. Kh5 {[%clk 0:02:05.9]} 52... Rb5 {[%clk
0:01:23.6]} 53. R4a5 {[%clk 0:02:06.7]} 53... Rb7 {[%clk 0:01:11.2]} 54. g6+
{[%clk 0:02:06.9]} 54... Kh8 {[%clk 0:01:12.3]} 55. Rc6 {[%clk 0:02:03.8]} 55...
Kg8 {[%clk 0:01:07.7]} 56. Rc8+ {[%clk 0:02:03.4]} 56... Rxc8 {[%clk 0:01:08.2]}
57. a8=Q {[%clk 0:02:05.3]} 1-0